fUSD/lending_fUSD_20240210
["ID","MTS","AMOUNT","RATE_DAILY","PERIOD"]
[313659975,1707550250862,-500.0,0.00023547,2]
[313659976,1707550250871,-500.0,0.00023547,2]
[313659977,1707550250880,-544.64,0.00023547,2]
[313659978,1707550250889,-974.06,0.00023547,2]
[313659979,1707550250898,-500.0,0.00023547,2]
[313659980,1707550250908,-235.61092794,0.00023547,2]
[313659981,1707550250918,-627.49,0.00023547,2]
[313659982,1707550250927,-500.0,0.00023547,2]
[313659983,1707550250936,-500.0,0.00023547,2]
[313659984,1707550250945,-428.93,0.00023547,2]
[313659985,1707550250955,-500.0,0.00023547,2]
[313659986,1707550250963,-626.9,0.00023547,2]
[313659987,1707550250972,-500.0,0.00023547,2]
[313659988,1707550250981,-504.36967194,0.00023547,2]
[313659989,1707550250991,-500.0,0.00023547,2]
[313659990,1707550251000,-500.0,0.00023547,2]
[313659991,1707550251010,-3096.17,0.00023547,2]
[313659992,1707550251019,-507.83497168,0.00023547,2]
[313659993,1707550251029,-500.0,0.00023547,2]
[313659994,1707550251038,-500.0,0.00023547,2]
[313659995,1707550251047,-500.0,0.00023547,2]
[313659996,1707550251056,-500.0,0.00023547,2]
[313659997,1707550251067,-500.0,0.00023547,2]
[313659998,1707550251077,-500.0,0.00023547,2]
[313659999,1707550251086,-1000.0,0.00023547,2]
[313660000,1707550251095,-500.0,0.00023547,2]
[313660001,1707550251106,-500.0,0.00023547,2]
[313660002,1707550251115,-500.0,0.00023547,2]
[313660003,1707550251124,-500.0,0.00023547,2]
[313660004,1707550251134,-500.0,0.00023547,2]
[313660005,1707550251144,-591.77763928,0.00023547,2]
[313660006,1707550251154,-500.0,0.00023547,2]
[313660007,1707550251163,-500.0,0.00023547,2]
[313660008,1707550251173,-500.0,0.00023547,2]
[313660009,1707550251182,-500.0,0.00023547,2]
[313660010,1707550251191,-532.21021883,0.00023547,2]
[313660011,1707550251201,-500.0,0.00023547,2]
[313660012,1707550251210,-500.0,0.00023547,2]
[313660013,1707550251220,-500.0,0.00023547,2]
[313660014,1707550251230,-500.0,0.00023547,2]
[313660015,1707550251239,-500.0,0.00023547,2]
[313660016,1707550251249,-500.0,0.00023547,2]
[313660017,1707550251258,-500.0,0.00023547,2]
[313660018,1707550251267,-500.0,0.00023547,2]
[313660019,1707550251277,-520.33,0.00023547,2]
[313660020,1707550251287,-500.0,0.00023547,2]
[313660021,1707550251297,-500.0,0.00023547,2]
[313660022,1707550251306,-500.0,0.00023547,2]
[313660023,1707550251315,-500.0,0.00023547,2]
[313660024,1707550251325,-500.0,0.00023547,2]
[313660025,1707550251334,-500.0,0.00023547,2]
[313660026,1707550251343,-500.0,0.00023547,2]
[313660027,1707550251353,-526.67747501,0.00023547,2]
[313660028,1707550251362,-500.0,0.00023547,2]
[313660029,1707550251372,-500.0,0.00023547,2]
[313660030,1707550251382,-500.0,0.00023547,2]
[313660031,1707550251391,-500.0,0.00023547,2]
[313660032,1707550251400,-500.0,0.00023547,2]
[313660033,1707550251411,-500.0,0.00023547,2]
[313660034,1707550251581,-500.0,0.00023547,2]
[313660035,1707550251591,-500.0,0.00023547,2]
[313660036,1707550251600,-500.0,0.00023547,2]
[313660037,1707550251609,-889.97,0.00023547,2]
[313660038,1707550251619,-500.0,0.00023547,2]
[313660039,1707550251629,-993.79,0.00023547,2]
[313660040,1707550251638,-500.0,0.00023547,2]
[313660041,1707550251647,-829.76,0.00023547,2]
[313660042,1707550251656,-500.0,0.00023547,2]
[313660043,1707550251666,-500.0,0.00023547,2]
[313660044,1707550251675,-500.0,0.00023547,2]
[313660045,1707550251684,-500.0,0.00023547,2]
[313660046,1707550251694,-500.0,0.00023547,2]
[313660047,1707550251703,-500.0,0.00023547,2]
[313660048,1707550251713,-500.0,0.00023547,2]
[313660049,1707550251722,-611.14,0.00023547,2]
[313660050,1707550251732,-648.45,0.00023547,2]
[313660051,1707550251741,-500.0,0.00023547,2]
[313660052,1707550251750,-559.89383434,0.00023547,2]
[313660053,1707550251759,-500.0,0.00023547,2]
[313660054,1707550251768,-500.0,0.00023547,2]
[313660055,1707550251777,-500.0,0.00023547,2]
[313660056,1707550251786,-500.0,0.00023547,2]
[313660057,1707550251796,-500.0,0.00023547,2]
[313660058,1707550251805,-500.0,0.00023547,2]
[313660059,1707550251814,-500.0,0.00023547,2]
[313660060,1707550251823,-500.0,0.00023547,2]
[313660061,1707550251832,-500.0,0.00023547,2]
[313660062,1707550251841,-500.0,0.00023547,2]
[313660063,1707550251850,-679.62,0.00023547,2]
[313660064,1707550251859,-500.0,0.00023547,2]
[313660065,1707550251868,-500.0,0.00023547,2]
[313660066,1707550251877,-500.0,0.00023547,2]
[313660067,1707550251886,-1050.03,0.00023547,2]
[313660068,1707550251895,-500.0,0.00023547,2]
[313660069,1707550251905,-500.0,0.00023547,2]
[313660070,1707550251914,-500.0,0.00023547,2]
[313660071,1707550251923,-500.0,0.00023547,2]
[313660072,1707550251933,-500.0,0.00023547,2]
[313660073,1707550251942,-500.0,0.00023547,2]
[313660074,1707550251951,-500.0,0.00023547,2]
[313660075,1707550251960,-500.0,0.00023547,2]
[313660076,1707550251969,-500.0,0.00023547,2]
[313660077,1707550251978,-500.0,0.00023547,2]
[313660078,1707550251987,-500.0,0.00023547,2]
[313660079,1707550251997,-426.47795133,0.00023547,2]
[313660080,1707550252006,-500.0,0.00023547,2]
[313660081,1707550252016,-500.0,0.00023547,2]
[313660082,1707550252025,-531.44702969,0.00023547,2]
[313660083,1707550252034,-724.43,0.00023547,2]
[313660084,1707550252044,-500.0,0.00023547,2]
[313660085,1707550252053,-500.0,0.00023547,2]
[313660086,1707550252066,-500.0,0.00023547,2]
[313660087,1707550252076,-500.0,0.00023547,2]
[313660088,1707550252085,-727.19,0.00023547,2]
[313660089,1707550252094,-500.0,0.00023547,2]
[313660090,1707550252104,-500.0,0.00023547,2]
[313660091,1707550252113,-500.0,0.00023547,2]
[313660092,1707550252122,-500.0,0.00023547,2]
[313660093,1707550252132,-500.0,0.00023547,2]
[313660094,1707550252142,-500.0,0.00023547,2]
[313660095,1707550252151,-500.0,0.00023547,2]
[313660096,1707550252161,-500.0,0.00023547,2]
[313660097,1707550252170,-500.0,0.00023547,2]
[313660098,1707550252180,-500.0,0.00023547,2]
[313660099,1707550252189,-861.38,0.00023547,2]
[313660100,1707550252198,-1177.9,0.00023547,2]
[313660101,1707550252207,-500.0,0.00023547,2]
[313660102,1707550252217,-1067.09,0.00023547,2]
[313660103,1707550252227,-500.0,0.00023547,2]
[313660104,1707550252237,-500.0,0.00023547,2]
[313660105,1707550252247,-500.0,0.00023547,2]
[313660106,1707550252256,-500.0,0.00023547,2]
[313660107,1707550252266,-1156.27,0.00023547,2]
[313660108,1707550252275,-500.0,0.00023547,2]
[313660109,1707550252284,-1575.54,0.00023547,2]
[313660110,1707550252294,-500.0,0.00023547,2]
[313660111,1707550252303,-2269.78,0.00023547,2]
[313660112,1707550252312,-500.0,0.00023547,2]
[313660113,1707550252321,-500.0,0.00023547,2]
[313660114,1707550252330,-500.0,0.00023547,2]
[313660115,1707550252340,-500.0,0.00023547,2]
[313660116,1707550252349,-500.0,0.00023547,2]
[313660117,1707550252358,-500.0,0.00023547,2]
[313660118,1707550252366,-500.0,0.00023547,2]
[313660119,1707550252376,-1021.86472363,0.00023547,7]
[313660120,1707550252385,-500.0,0.00023547,2]
[313660121,1707550252394,-576.66,0.00023547,2]
[313660122,1707550252404,-675.42,0.00023547,2]
[313660123,1707550252413,-500.0,0.00023547,2]
[313660124,1707550252422,-22082.31,0.00023547,2]
[313660125,1707550252432,-500.0,0.00023547,2]
[313660126,1707550252441,-500.0,0.00023547,2]
[313660127,1707550252450,-661.15,0.00023547,2]
[313660128,1707550252459,-500.0,0.00023547,2]
[313660129,1707550252469,-3836.38,0.00023547,2]
[313660130,1707550252478,-500.0,0.00023547,2]
[313660131,1707550252487,-265.17791754,0.00023547,2]
[313660132,1707550252497,-500.0,0.00023547,2]
[313660133,1707550252506,-1753.23,0.00023547,2]
[313660134,1707550252516,-646.96,0.00023547,2]
[313660135,1707550252526,-500.0,0.00023547,2]
[313660136,1707550252535,-2810.38,0.00023547,2]
[313660137,1707550252545,-500.0,0.00023547,2]
[313660138,1707550252554,-500.0,0.00023547,2]
[313660139,1707550252563,-500.0,0.00023547,2]
[313660140,1707550252573,-1134.33,0.00023547,2]
[313660141,1707550252582,-500.0,0.00023547,2]
[313660142,1707550252591,-868.51,0.00023547,2]
[313660143,1707550252600,-3291.37,0.00023547,2]
[313660144,1707550252609,-3793.59,0.00023547,2]
[313660145,1707550252618,-500.0,0.00023547,2]
[313660146,1707550252627,-2887.49,0.00023547,2]
[313660147,1707550252636,-500.0,0.00023547,2]
[313660148,1707550252645,-2696.64,0.00023547,2]
[313660149,1707550252654,-500.0,0.00023547,2]
[313660150,1707550252665,-3494.63,0.00023547,2]
[313660151,1707550252675,-1329.31,0.00023547,2]
[313660152,1707550252684,-15986.28,0.00023547,2]
[313660153,1707550252693,-3924.71,0.00023547,2]
[313660154,1707550252703,-500.0,0.00023547,2]
[313660155,1707550252712,-2790.09,0.00023547,2]
[313660156,1707550252722,-500.0,0.00023547,2]
[313660157,1707550252731,-500.0,0.00023547,2]
[313660158,1707550252741,-580.63,0.00023547,2]
[313660159,1707550252751,-500.0,0.00023547,2]
[313660160,1707550252760,-1284.22,0.00023547,2]
[313660161,1707550252769,-500.0,0.00023547,2]
[313660162,1707550252779,-500.0,0.00023547,2]
[313660163,1707550252788,-1880.44,0.00023547,2]
[313660164,1707550252797,-4255.52,0.00023547,2]
[313660165,1707550252807,-500.0,0.00023547,2]
[313660166,1707550252816,-296.37206631,0.00023547,2]
[313660167,1707550252826,-1208.77,0.00023547,2]
[313660168,1707550252835,-843.31,0.00023547,2]
[313660169,1707550252844,-2129.9,0.00023547,2]
[313660170,1707550252854,-14473.93,0.00023547,2]
[313660171,1707550252863,-500.0,0.00023547,2]
[313660172,1707550252872,-646.6,0.00023547,2]
[313660173,1707550252882,-787.06,0.00023547,2]
[313660174,1707550252891,-4619.9,0.00023547,2]
[313660175,1707550252900,-500.0,0.00023547,2]
[313660176,1707550252910,-2647.77,0.00023547,2]
[313660177,1707550252919,-500.0,0.00023547,2]
[313660178,1707550252929,-500.0,0.00023547,2]
[313660179,1707550252938,-771.9,0.00023547,2]
[313660180,1707550252947,-500.0,0.00023547,2]
[313660181,1707550252956,-939.8,0.00023547,2]
[313660182,1707550252965,-500.0,0.00023547,2]
[313660183,1707550252975,-500.0,0.00023547,2]
[313660184,1707550252984,-536.77142533,0.00023547,2]
[313660185,1707550252993,-2309.86,0.00023547,2]
[313660186,1707550253002,-500.0,0.00023547,2]
[313660187,1707550253012,-503.63,0.00023547,2]
[313660188,1707550253021,-500.0,0.00023547,2]
[313660189,1707550253030,-3308.8,0.00023547,2]
[313660190,1707550253039,-619.96,0.00023547,2]
[313660191,1707550253048,-534.85,0.00023547,2]
[313660192,1707550253058,-500.0,0.00023547,2]
[313660193,1707550253069,-500.0,0.00023547,2]
[313660194,1707550253078,-500.0,0.00023547,2]
[313660195,1707550253087,-1722.53,0.00023547,2]
[313660196,1707550253097,-500.0,0.00023547,2]
[313660197,1707550253106,-500.0,0.00023547,2]
[313660198,1707550253116,-500.0,0.00023547,2]
[313660199,1707550253125,-640.19577034,0.00023547,2]
[313660200,1707550253134,-500.0,0.00023547,2]
[313660201,1707550253143,-500.0,0.00023547,2]
[313660202,1707550253152,-904.9,0.00023547,2]
[313660203,1707550253164,-15067.19,0.00023547,2]
[313660204,1707550253173,-500.0,0.00023547,2]
[313660205,1707550253182,-500.0,0.00023547,2]
[313660206,1707550253191,-161.86761481,0.00023582,2]
[313660207,1707550253199,-165.33,0.00023584,2]
[313660208,1707550253209,-161.86761481,0.00023721,2]
[313660209,1707550253217,-173.0,0.00023744,2]
[313660210,1707550253226,-2015.18803531,0.0002377,2]
[313660211,1707550253236,-14882.0,0.00023808,2]
[313660212,1707550253246,-386.57633682,0.00023817,2]
[313660213,1707550253255,-370.7952467,0.00023817,2]
[313660214,1707550253264,-500.0,0.00023817,2]
[313660215,1707550253273,-385.86986414,0.00023817,2]
[313660216,1707550253283,-500.0,0.00023817,2]
[313660217,1707550253292,-500.0,0.00023817,2]
[313660218,1707550253301,-585.78583547,0.00023817,2]
[313660219,1707550253310,-491.7448759,0.00023817,2]
[313660220,1707550253319,-500.0,0.00023817,2]
[313660221,1707550253328,-191.90942035,0.00023817,2]
[313660222,1707550253338,-500.0,0.00023818,2]
[313660223,1707550253347,-500.0,0.00023818,2]
[313660224,1707550253357,-500.0,0.00023818,2]
[313660225,1707550253366,-876.0,0.00023818,2]
[313660226,1707550253375,-739.06,0.00023818,2]
[313660227,1707550253384,-2841.02,0.00023818,2]
[313660228,1707550253394,-500.0,0.00023818,2]
[313660229,1707550253404,-500.0,0.00023818,2]
[313660230,1707550253415,-1236.7,0.00023818,2]
[313660231,1707550253424,-780.84,0.00023818,2]
[313660232,1707550253434,-1564.86,0.00023818,2]
[313660233,1707550253443,-841.34,0.00023818,2]
[313660234,1707550253452,-500.0,0.00023818,2]
[313660235,1707550253461,-3213.78,0.00023818,2]
[313660236,1707550253471,-964.5,0.00023818,2]
[313660237,1707550253480,-3065.8,0.00023818,2]
[313660238,1707550253489,-500.0,0.00023818,2]
[313660239,1707550253498,-1033.2,0.00023818,2]
[313660240,1707550253507,-10773.23,0.00023818,2]
[313660241,1707550253516,-528.14,0.00023818,2]
[313660242,1707550253525,-500.0,0.00023818,2]
[313660243,1707550253535,-4796.06,0.00023818,2]
[313660244,1707550253544,-723.87,0.00023818,2]
[313660245,1707550253552,-858.57,0.00023818,2]
[313660246,1707550253561,-1178.95,0.00023818,2]
[313660247,1707550253570,-770.08,0.00023818,2]
[313660248,1707550253579,-750.69,0.00023818,2]
[313660249,1707550253588,-500.0,0.00023818,2]
[313660250,1707550253598,-562.0832934,0.00023818,2]
[313660251,1707550253607,-532.38,0.00023819,2]
[313660252,1707550253616,-865.44,0.00023819,2]
[313660253,1707550253626,-500.0,0.00023819,2]
[313660254,1707550253636,-4005.94,0.00023819,2]
[313660255,1707550253646,-4233.42,0.00023819,2]
[313660256,1707550253655,-28207.96,0.00023819,2]
[313660257,1707550253666,-952.98,0.00023819,2]
[313660258,1707550253675,-9584.11,0.00023819,2]
[313660259,1707550253684,-502.75667475,0.00023819,2]
[313660260,1707550254283,-3854.59332525,0.00023819,2]
[313660261,1707550254292,-500.0,0.00023819,2]
[313660262,1707550254302,-446.31724216,0.00023819,2]
[313660263,1707550254315,-53.68275784,0.00023819,2]
[313660264,1707550254324,-594.84017446,0.00023819,2]
[313660265,1707550254362,-500.0,0.0002327,2]
[313660266,1707550254371,-127.74580422,0.00023546,2]
[313660267,1707550254383,-372.25419578,0.00023546,2]
[313660268,1707550254392,-3216.52982554,0.00023819,2]
[313660269,1707550254401,-500.0,0.00023819,2]
[313660270,1707550254411,-53.38508908,0.00023819,2]
[313660271,1707550254424,-643.08479251,0.00023819,2]
[313660272,1707550254436,-1007.38297438,0.00023819,2]
[313660273,1707550254447,-293.44714403,0.00023819,2]
[313660274,1707550254456,-490.75836544,0.00023819,2]
[313660275,1707550254484,-496.32163456,0.00023819,2]
[313660276,1707550254493,-78.66573359,0.00023819,2]
[313660277,1707550256460,-163.53809867,0.00022996,2]
[313660278,1707550256471,-5592.28,0.00022997,2]
[313660279,1707550256482,-500.0,0.00022998,2]
[313660280,1707550256491,-5592.28,0.00023271,2]
[313660281,1707550256502,-500.0,0.00023272,2]
[313660282,1707550256511,-500.0,0.00023544,2]
[313660283,1707550256521,-500.0,0.00023544,2]
[313660284,1707550256530,-5592.28,0.00023545,2]
[313660285,1707550256539,-500.0,0.00023546,2]
[313660286,1707550256550,-500.0,0.00023818,2]
[313660287,1707550256560,-500.0,0.00023818,2]
[313660288,1707550256570,-15674.66426641,0.00023819,2]
[313660289,1707550256580,-524.03,0.00023819,2]
[313660290,1707550256590,-623.89,0.00023819,2]
[313660291,1707550256600,-1474.04,0.00023819,2]
[313660292,1707550256610,-500.0,0.00023819,2]
[313660293,1707550256619,-500.0,0.00023819,2]
[313660294,1707550256629,-697.25,0.00023819,2]
[313660295,1707550256638,-5901.87,0.00023819,2]
[313660296,1707550256647,-820.78,0.00023819,2]
[313660297,1707550256657,-1020.72,0.00023819,2]
[313660298,1707550256666,-983.08,0.00023819,2]
[313660299,1707550256675,-5592.28,0.00023819,2]
[313660300,1707550256684,-500.0,0.0002382,2]
[313660301,1707550256693,-651.29,0.0002382,2]
[313660302,1707550256702,-500.0,0.0002382,2]
[313660303,1707550256711,-500.0,0.0002382,2]
[313660304,1707550256720,-500.0,0.0002382,2]
[313660305,1707550256729,-500.0,0.0002382,2]
[313660306,1707550256738,-500.0,0.0002382,2]
[313660307,1707550256747,-500.0,0.0002382,2]
[313660308,1707550256756,-500.0,0.0002382,2]
[313660309,1707550256765,-500.0,0.0002382,2]
[313660310,1707550256774,-500.0,0.0002382,2]
[313660311,1707550256783,-500.0,0.0002382,2]
[313660312,1707550256792,-500.0,0.0002382,2]
[313660313,1707550256801,-698.85,0.0002382,7]
[313660314,1707550256810,-500.0,0.0002382,2]
[313660315,1707550256983,-500.0,0.0002382,2]
[313660316,1707550256992,-500.0,0.0002382,2]
[313660317,1707550257002,-500.0,0.0002382,2]
[313660318,1707550257011,-500.0,0.0002382,2]
[313660319,1707550257021,-500.0,0.0002382,2]
[313660320,1707550257030,-500.0,0.0002382,2]
[313660321,1707550257039,-500.0,0.0002382,2]
[313660322,1707550257049,-596.59,0.0002382,2]
[313660323,1707550257059,-653.32,0.0002382,2]
[313660324,1707550257069,-500.0,0.0002382,2]
[313660325,1707550257079,-500.0,0.0002382,2]
[313660326,1707550257088,-500.0,0.0002382,2]
[313660327,1707550257097,-500.0,0.0002382,2]
[313660328,1707550257106,-500.0,0.0002382,2]
[313660329,1707550257117,-500.0,0.0002382,2]
[313660330,1707550257128,-500.0,0.0002382,2]
[313660331,1707550257137,-500.0,0.0002382,2]
[313660332,1707550257148,-500.0,0.0002382,2]
[313660333,1707550257157,-500.0,0.0002382,2]
[313660334,1707550257166,-208.83778309,0.0002382,2]
[313660335,1707550257179,-291.16221691,0.0002382,2]
[313660336,1707550257188,-500.0,0.0002382,2]
[313660337,1707550257198,-500.0,0.0002382,2]
[313660338,1707550257206,-500.0,0.0002382,2]
[313660339,1707550257215,-749.98,0.0002382,2]
[313660340,1707550257224,-501.59,0.0002382,2]
[313660341,1707550257234,-500.0,0.0002382,2]
[313660342,1707550257244,-500.0,0.0002382,2]
[313660343,1707550257253,-178.4,0.0002382,2]
[313660344,1707550257262,-1628.71,0.0002382,2]
[313660345,1707550257272,-440.19492308,0.0002382,2]
[313660346,1707550257285,-59.80507692,0.0002382,2]
[313660347,1707550257295,-797.39,0.0002382,2]
[313660348,1707550257304,-500.0,0.0002382,2]
[313660349,1707550257314,-500.0,0.0002382,2]
[313660350,1707550257324,-905.39,0.0002382,2]
[313660351,1707550257333,-419.9961369,0.0002382,2]
[313660352,1707550257345,-80.0038631,0.0002382,2]
[313660353,1707550257354,-372.25228843,0.0002382,2]
[313660354,1707550257366,-359.45574608,0.0002382,2]
[313660355,1707550257377,-251.58,0.0002382,2]
[313660356,1707550257389,-385.87196549,0.0002382,2]
[313660357,1707550257398,-315.45871024,0.0002382,2]
[313660358,1707550257410,-285.52128976,0.0002382,2]
[313660359,1707550257419,-500.0,0.0002382,2]
[313660360,1707550257428,-297.42757798,0.0002382,2]
[313660361,1707550257440,-434.98242202,0.0002382,2]
[313660362,1707550257449,-500.0,0.0002382,2]
[313660363,1707550257458,-332.7928298,0.0002382,2]
[313660364,1707550257470,-167.2071702,0.0002382,2]
[313660365,1707550257479,-155.04989132,0.0002382,2]
[313660366,1707550257494,-344.95010868,0.0002382,2]
[313660367,1707550257503,-519.21,0.0002382,2]
[313660368,1707550257512,-14.33383217,0.0002382,2]
[313660369,1707550257523,-818.49110992,0.0002382,2]
[313660370,1707550257537,-2525.19505791,0.0002382,2]
[313660371,1707550257546,-38.38154488,0.0002382,2]
[313660372,1707550257583,-461.61845512,0.0002382,2]
[313660373,1707550257592,-500.0,0.0002382,2]
[313660374,1707550257601,-500.0,0.0002382,2]
[313660375,1707550257612,-5968.38,0.0002382,2]
[313660376,1707550257621,-500.0,0.0002382,2]
[313660377,1707550257630,-500.0,0.0002382,2]
[313660378,1707550257639,-3541.74252834,0.0002382,2]
[313660379,1707550257650,-359.73856219,0.0002382,2]
[313660380,1707550257663,-864.96890947,0.0002382,2]
[313660381,1707550257672,-500.0,0.0002382,2]
[313660382,1707550257681,-917.38,0.0002382,2]
[313660383,1707550257690,-792.75659922,0.0002382,2]
[313660384,1707550257702,-20349.95340078,0.0002382,2]
[313660385,1707550257711,-7044.22,0.0002382,2]
[313660386,1707550257719,-500.0,0.0002382,2]
[313660387,1707550257728,-500.0,0.0002382,2]
[313660388,1707550257737,-2165.71,0.0002382,2]
[313660389,1707550257746,-500.0,0.0002382,2]
[313660390,1707550257755,-500.0,0.0002382,2]
[313660391,1707550257764,-4932.86,0.0002382,2]
[313660392,1707550257774,-773.79,0.0002382,2]
[313660393,1707550257783,-542.61785467,0.0002382,2]
[313660394,1707550257792,-545.16,0.0002382,2]
[313660395,1707550257802,-500.0,0.0002382,2]
[313660396,1707550257811,-500.0,0.0002382,2]
[313660397,1707550257820,-1857.65,0.0002382,2]
[313660398,1707550257830,-500.0,0.0002382,2]
[313660399,1707550257839,-500.0,0.0002382,2]
[313660400,1707550257849,-500.0,0.0002382,2]
[313660401,1707550257858,-7549.37,0.0002382,2]
[313660402,1707550257867,-2180.48525477,0.0002382,2]
[313660403,1707550258226,-328.8000002,0.00022996,2]
[313660404,1707550258238,-626.86484445,0.00022996,2]
[313660405,1707550258293,-456.03667236,0.00022996,2]
[313660407,1707550417567,211.48,0.0002075,2]
[313660408,1707550787921,165.33,0.00022475,2]
[313660409,1707551002474,200.9,0.00020649,2]
[313660411,1707551200236,434301.09253071,0.00022501,2]
[313660412,1707551203820,-150.0,0.00022501,2]
[313660413,1707551203968,-150.0,0.00022501,2]
[313660414,1707551204001,-150.0,0.00022501,2]
[313660415,1707551204362,-150.0,0.00022501,2]
[313660416,1707551204482,-150.0,0.00022501,2]
[313660417,1707551204518,-150.0,0.00022501,2]
[313660418,1707551204552,-150.0,0.00022501,2]
[313660419,1707551204595,-161.71633606,0.00022501,2]
[313660420,1707551210657,175.07,0.00022289,2]
[313660421,1707551211018,588.78719357,0.000225,2]
[313660422,1707551218731,161.86761481,0.0002242,2]
[313660423,1707551254408,430083.30548189,0.00022501,2]
[313660424,1707551264537,416.6495,0.00022442,2]
[313660425,1707551280093,515.28146836,0.0002242,7]
[313660428,1707551321348,246.43,0.00022136,2]
[313660446,1707551433316,-1521.04990684,0.00022505,2]
[313660447,1707551433401,-264.55,0.00022505,2]
[313660448,1707551433417,-2366.892,0.00022505,2]
[313660449,1707551433465,-12995.53824456,0.00022505,2]
[313660450,1707551433474,-729.50850918,0.0002252,2]
[313660451,1707551433485,-524.75,0.00022521,2]
[313660452,1707551433495,-475.25,0.00022543,2]
[313660453,1707551433504,-300.0,0.000227,8]
[313660454,1707551433514,-600.0,0.000228,8]
[313660455,1707551433523,-2500.0,0.00022896,2]
[313660456,1707551433532,-4519.57188849,0.00022896,2]
[313660457,1707551433544,-1516.03371151,0.00022896,2]
[313660458,1707551433554,-900.0,0.000229,8]
[313660459,1707551433563,-200.9,0.00022913,2]
[313660460,1707551433573,-177.27300872,0.00022987,2]
[313660461,1707551433583,-937.3048118,0.00022994,2]
[313660462,1707551433592,-151.021,0.00022994,2]
[313660463,1707551433602,-151.021,0.00022994,2]
[313660464,1707551433611,-151.021,0.00022994,2]
[313660465,1707551433621,-151.021,0.00022994,2]
[313660466,1707551433634,-151.021,0.00022994,2]
[313660467,1707551433644,-151.021,0.00022994,2]
[313660468,1707551433654,-94.25446797,0.00022994,2]
[313660469,1707551433701,-56.76653203,0.00022994,2]
[313660470,1707551433710,-155.45707702,0.00022995,2]
[313660471,1707551433720,-348.56879629,0.00022995,2]
[313660472,1707551433730,-500.0,0.00022995,2]
[313660473,1707551433739,-500.0,0.00022995,2]
[313660474,1707551433749,-500.0,0.00022995,2]
[313660475,1707551433759,-500.0,0.00022995,2]
[313660476,1707551433768,-131.27736998,0.00022995,2]
[313660477,1707551433781,-368.72263002,0.00022995,2]
[313660478,1707551433791,-500.0,0.00022995,2]
[313660479,1707551433800,-526.2716841,0.00022995,2]
[313660480,1707551433810,-500.0,0.00022995,2]
[313660481,1707551433819,-500.0,0.00022995,2]
[313660482,1707551433829,-349.70352119,0.00022995,2]
[313660497,1707551437542,-150.29647881,0.00022995,2]
[313660498,1707551437552,-373.43624255,0.00022995,2]
[313660514,1707551438230,-126.56375745,0.00022995,2]
[313660515,1707551438239,-500.0,0.00022995,2]
[313660516,1707551438249,-522.40185531,0.00022995,2]
[313660517,1707551438258,-500.0,0.00022995,2]
[313660518,1707551438268,-354.30284465,0.00022995,2]
[313660519,1707551438277,-83.15519601,0.00022995,2]
[313660520,1707551438324,-449.43980359,0.00022995,2]
[313660521,1707551438334,-500.0,0.00022995,2]
[313660522,1707551438343,-500.0,0.00022995,2]
[313660523,1707551438352,-500.0,0.00022995,2]
[313660524,1707551438361,-500.0,0.00022995,2]